{"text_format":"1","workbook":"xlsx","n_sheets":6,"sheets":["Level 1, 5-V jatko","Level 2, 5-V jatko","Level 3, 5-V jatko","Level 3, 10-V uusinta","C.2 NDT-toimintojen suorittamin","Liite E"],"not_rendered":{"charts":0,"images":1,"macros":0,"external_links":0,"defined_names":4,"comments":0,"pivot_tables":0},"unopened":[],"bounds":{"document_bytes":16777216,"sheet_cells":100000,"rows_first":2000,"rows_last":500,"rows_between":2000,"halvings":0,"cell_chars":16384,"cell_head_chars":4096},"cells_cut":0,"cells_raw":0,"read":"whole","date_system":"1900"}

{"sheet":"Level 1, 5-V jatko","index":0,"n_rows":29,"n_cols":14,"rows_kept":29,"cut":false,"hidden":false,"merged":[[29,0,29,2],[29,3,29,4],[12,0,12,1],[14,0,14,1],[15,0,15,1],[5,0,5,2],[5,3,5,4],[7,0,7,1],[8,0,8,11],[9,12,12,12],[14,12,16,12],[11,0,11,1],[26,0,26,2],[26,3,26,4],[9,0,9,1],[10,0,10,1],[16,0,16,1],[23,0,23,2],[23,3,23,4],[21,0,21,5],[13,0,13,11]]}
[]
["SFS-EN ISO 9712"]
["ANSIOPISTEIDEN KERUUJÄRJESTELMÄ LEVEL-1 5-VUOTISUUSINTAA VARTEN"]
[]
["Hakija (sertifioitu henkilö):",null,null,"Menetelmä ja taso"]
[]
[]
["Taulukko C.1 ISO 9712",null,"Toiminto","Pisteet joka toiminnolle","Enimmäispisteet vuotta ja toimintoa kohti","Enimmäispisteet 5 vuotta ja toimintoa kohti","Vuosi 1","Vuosi 2","Vuosi 3","Vuosi 4","Vuosi 5","Yht.    1-5 vuosi","Osa A Pisteet yht. min 75"]
["OSA A"]
[1,null,"NDT-toimintojen suorittaminen (ks. SFS-EN ISO 9712 kappale C.2)a","2 / päivä",25,95,null,null,null,null,null,{"$f":"IF(SUM(G10:K10)>F10,F10,SUM(G10:K10))","v":0},{"$f":"SUM(L10:L13)","v":0}]
[2,null,"Menetelmään liittyvän teoreettisen koulutuksen suorittaminen","1 / päivä",5,15,null,null,null,null,null,{"$f":"IF(SUM(G11:K11)>F11,F11,SUM(G11:K11))","v":0},null,{"$f":"IF(AND(M10>0,M10<75),\"Pisteet ei riitä\",\"\")","v":""}]
[3,null,"Menetelmään liittyvän käytännön koulutuksen suorittaminen","2 / päivä",10,25,null,null,null,null,null,{"$f":"IF(SUM(G12:K12)>F12,F12,SUM(G12:K12))","v":0}]
[5,null,"NDT-tutkimustoimintaan tai NDT-toimintaan osallistuminen (ks. SFS-EN ISO 9712 liite E)","2 / viikko",15,60,null,null,null,null,null,{"$f":"IF(SUM(G13:K13)>F13,F13,SUM(G13:K13))","v":0}]
["OSA B"]
[6,null,"Osallistuminen menetelmään tai tekniikkaan liittyvään tekniseen seminaariin tai julkaisun kirjoittamiseen","1 / päivä",2,10,null,null,null,null,null,{"$f":"IF(SUM(G15:K15)>F15,F15,SUM(G15:K15))","v":0},{"$f":"SUM(L15:L17)","v":0}]
[7,null,"Julkaisun esittely menetelmään tai tekniikkaan liittyvässä teknisessä seminaarissa","1 / esitys",3,15,null,null,null,null,null,{"$f":"IF(SUM(G16:K16)>F16,F16,SUM(G16:K16))","v":0}]
[8,null,"NDT-yhdistyksen tai NDT:hen liittyvän yhdistyksen voimassa oleva henkilökohtainen jäsenyys","1 / jäsenyys",2,5,null,null,null,null,null,{"$f":"IF(SUM(G17:K17)>F17,F17,SUM(G17:K17))","v":0}]
[null,null,"HUOM. Taulukossa esiintyvällä termillä ”vuosi” tarkoitetaan sertifiointivuotta, ei kalenterivuotta."]
[null,null,"a Katso kohta C.2 yksityiskohdista tähän toimintoon liittyen.",null,null,null,null,null,null,null,null,"Pisteet yhteensä (vaatimus vähintään 100):",{"$f":"M15+M10","v":0},{"$f":"IF(AND(M19>0,M19<100),\"Pisteet ei riitä\",\"\")","v":""}]
[]
[]
[]
["Hakijan allekirjoitus",null,null,"PVM"]
[]
[]
["Työnantajan allekirjoitus:",null,null,"PVM"]
[]
[]
["Tutkinnon arvostelija (sertifiointielin):",null,null,"PVM"]

{"sheet":"Level 2, 5-V jatko","index":1,"n_rows":33,"n_cols":14,"rows_kept":33,"cut":false,"hidden":false,"merged":[[33,0,33,2],[33,3,33,4],[25,0,25,5],[27,0,27,2],[27,3,27,4],[30,0,30,2],[30,3,30,4],[15,0,15,1],[15,12,20,12],[16,0,16,1],[17,0,17,1],[18,0,18,1],[19,0,19,1],[20,0,20,1],[9,12,13,12],[10,0,10,1],[11,0,11,1],[12,0,12,1],[13,0,13,1],[14,0,14,11],[5,0,5,2],[5,3,5,4],[7,0,7,1],[8,0,8,11],[9,0,9,1]]}
[]
["SFS-EN ISO 9712"]
["ANSIOPISTEIDEN KERUUJÄRJESTELMÄ LEVEL-2 5-VUOTISUUSINTAA VARTEN"]
[]
["Hakija (sertifioitu henkilö):",null,null,"Menetelmä ja taso"]
[]
[]
["Taulukko C.1 ISO 9712",null,"Toiminto","Pisteet joka toiminnolle","Enimmäispisteet vuotta ja toimintoa kohti","Enimmäispisteet 5 vuotta ja toimintoa kohti","Vuosi 1","Vuosi 2","Vuosi 3","Vuosi 4","Vuosi 5","Yht.    1-5 vuosi","Osa A Pisteet yht. min 50"]
["OSA A"]
[1,null,"NDT-toimintojen suorittaminen (ks. SFS-EN ISO 9712 kappale C.2)a","2 / päivä",25,95,null,null,null,null,null,{"$f":"IF(SUM(G10:K10)>F10,F10,SUM(G10:K10))","v":0},{"$f":"SUM(L10:L14)","v":0}]
[2,null,"Menetelmään liittyvän teoreettisen koulutuksen suorittaminen","1 / päivä",5,15,null,null,null,null,null,{"$f":"IF(SUM(G11:K11)>F11,F11,SUM(G11:K11))","v":0},null,{"$f":"IF(AND(M10>0,M10<50),\"Pisteet ei riitä\",\"\")","v":""}]
[3,null,"Menetelmään liittyvän käytännön koulutuksen suorittaminen","2 / päivä",10,25,null,null,null,null,null,{"$f":"IF(SUM(G12:K12)>F12,F12,SUM(G12:K12))","v":0}]
[4,null,"Käytännön tai teoreettisen koulutuksen antaminen kyseisestä NDT-menetelmästä","1 / päivä",15,75,null,null,null,null,null,{"$f":"IF(SUM(G13:K13)>F13,F13,SUM(G13:K13))","v":0}]
[5,null,"NDT-tutkimustoimintaan tai NDT-toimintaan osallistuminen (ks. SFS-EN ISO 9712 liite E)","2 / viikko",15,60,null,null,null,null,null,{"$f":"IF(SUM(G14:K14)>F14,F14,SUM(G14:K14))","v":0}]
["OSA B"]
[6,null,"Osallistuminen menetelmään tai tekniikkaan liittyvään tekniseen seminaariin tai julkaisun kirjoittamiseen","1 / päivä",2,10,null,null,null,null,null,{"$f":"IF(SUM(G16:K16)>F16,F16,SUM(G16:K16))","v":0},{"$f":"SUM(L16:L21)","v":0}]
[7,null,"Julkaisun esittely menetelmään tai tekniikkaan liittyvässä teknisessä seminaarissa","1 / esitys",3,15,null,null,null,null,null,0]
[8,null,"NDT-yhdistyksen tai NDT:hen liittyvän yhdistyksen voimassa oleva henkilökohtainen jäsenyys","1 / jäsenyys",2,5,null,null,null,null,null,0]
[9,null,"NDT-henkilöstön/harjoittelijoiden valvonta ja opastus kyseisessä menetelmässä","2 / mentoroitava",10,30,null,null,null,null,null,0]
[10,null,"Osallistuminen tai puheenjohtajuus kansallisissa standardisointiryhmissä ja teknisissä komiteoissa","1 / komitea",3,15,null,null,null,null,null,0]
[11,null,"Teknisten NDT-tehtävien suorittaminen sertifiointielimen palveluksessa","2 / toiminta",10,30,null,null,null,null,null,0]
[null,null,"HUOM. Taulukossa esiintyvällä termillä ”vuosi” tarkoitetaan sertifiointivuotta, ei kalenterivuotta."]
[null,null,"a Katso kohta C.2 yksityiskohdista tähän toimintoon liittyen.",null,null,null,null,null,null,null,null,"Pisteet yhteensä (vaatimus vähintään 100):",{"$f":"M10+M16","v":0},{"$f":"IF(AND(M23>0,M23<100),\"Pisteet ei riitä\",\"\")","v":""}]
[]
[]
[]
["Hakijan allekirjoitus",null,null,"PVM"]
[]
[]
["Työnantajan allekirjoitus:",null,null,"PVM"]
[]
[]
["Tutkinnon arvostelija (sertifiointielin):",null,null,"PVM"]

{"sheet":"Level 3, 5-V jatko","index":2,"n_rows":33,"n_cols":14,"rows_kept":33,"cut":false,"hidden":false,"merged":[[33,0,33,2],[33,3,33,4],[25,0,25,5],[27,0,27,2],[27,3,27,4],[30,0,30,2],[30,3,30,4],[15,0,15,1],[15,12,20,12],[16,0,16,1],[17,0,17,1],[18,0,18,1],[19,0,19,1],[20,0,20,1],[9,12,13,12],[10,0,10,1],[11,0,11,1],[12,0,12,1],[13,0,13,1],[14,0,14,11],[5,0,5,2],[5,3,5,4],[7,0,7,1],[8,0,8,11],[9,0,9,1]]}
[]
["SFS-EN ISO 9712"]
["ANSIOPISTEIDEN KERUUJÄRJESTELMÄ LEVEL-3 5-VUOTISUUSINTAA VARTEN"]
[]
["Hakija (sertifioitu henkilö):",null,null,"Menetelmä ja taso"]
[]
[]
["Taulukko C.1 ISO 9712",null,"Toiminto","Pisteet joka toiminnolle","Enimmäispisteet vuotta ja toimintoa kohti","Enimmäispisteet 5 vuotta ja toimintoa kohti","Vuosi 1","Vuosi 2","Vuosi 3","Vuosi 4","Vuosi 5","Yht.    1-5 vuosi","Osa A Pisteet yht. min 50"]
["OSA A"]
[1,null,"NDT-toimintojen suorittaminen (ks. SFS-EN ISO 9712 kappale C.2)a","2 / päivä",25,95,null,null,null,null,null,{"$f":"IF(SUM(G10:K10)>F10,F10,SUM(G10:K10))","v":0},{"$f":"SUM(L10:L14)","v":0}]
[2,null,"Menetelmään liittyvän teoreettisen koulutuksen suorittaminen","1 / päivä",5,15,null,null,null,null,null,{"$f":"IF(SUM(G11:K11)>F11,F11,SUM(G11:K11))","v":0},null,{"$f":"IF(AND(M10>0,M10<50),\"Pisteet ei riitä\",\"\")","v":""}]
[3,null,"Menetelmään liittyvän käytännön koulutuksen suorittaminen","2 / päivä",10,25,null,null,null,null,null,{"$f":"IF(SUM(G12:K12)>F12,F12,SUM(G12:K12))","v":0}]
[4,null,"Käytännön tai teoreettisen koulutuksen antaminen kyseisestä NDT-menetelmästä","1 / päivä",15,75,null,null,null,null,null,{"$f":"IF(SUM(G13:K13)>F13,F13,SUM(G13:K13))","v":0}]
[5,null,"NDT-tutkimustoimintaan tai NDT-toimintaan osallistuminen (ks. SFS-EN ISO 9712 liite E)","2 / viikko",15,60,null,null,null,null,null,{"$f":"IF(SUM(G14:K14)>F14,F14,SUM(G14:K14))","v":0}]
["OSA B"]
[6,null,"Osallistuminen menetelmään tai tekniikkaan liittyvään tekniseen seminaariin tai julkaisun kirjoittamiseen","1 / päivä",2,10,null,null,null,null,null,{"$f":"IF(SUM(G16:K16)>F16,F16,SUM(G16:K16))","v":0},{"$f":"SUM(L16:L21)","v":0}]
[7,null,"Julkaisun esittely menetelmään tai tekniikkaan liittyvässä teknisessä seminaarissa","1 / esitys",3,15,null,null,null,null,null,0]
[8,null,"NDT-yhdistyksen tai NDT:hen liittyvän yhdistyksen voimassa oleva henkilökohtainen jäsenyys","1 / jäsenyys",2,5,null,null,null,null,null,0]
[9,null,"NDT-henkilöstön/harjoittelijoiden valvonta ja opastus kyseisessä menetelmässä","2 / mentoroitava",10,40,null,null,null,null,null,0]
[10,null,"Osallistuminen tai puheenjohtajuus kansallisissa standardisointiryhmissä ja teknisissä komiteoissa","1 / komitea",4,20,null,null,null,null,null,0]
[11,null,"Teknisten NDT-tehtävien suorittaminen sertifiointielimen palveluksessa","2 / toiminta",10,40,null,null,null,null,null,0]
[null,null,"HUOM. Taulukossa esiintyvällä termillä ”vuosi” tarkoitetaan sertifiointivuotta, ei kalenterivuotta."]
[null,null,"a Katso kohta C.2 yksityiskohdista tähän toimintoon liittyen.",null,null,null,null,null,null,null,null,"Pisteet yhteensä (vaatimus vähintään 100):",{"$f":"M10+M16","v":0},{"$f":"IF(AND(M23>0,M23<100),\"Pisteet ei riitä\",\"\")","v":""}]
[]
[]
[]
["Hakijan allekirjoitus",null,null,"PVM"]
[]
[]
["Työnantajan allekirjoitus:",null,null,"PVM"]
[]
[]
["Tutkinnon arvostelija (sertifiointielin):",null,null,"PVM"]

{"sheet":"Level 3, 10-V uusinta","index":3,"n_rows":33,"n_cols":14,"rows_kept":33,"cut":false,"hidden":false,"merged":[[33,0,33,2],[33,3,33,4],[25,0,25,5],[27,0,27,2],[27,3,27,4],[30,0,30,2],[30,3,30,4],[15,0,15,1],[15,12,20,12],[16,0,16,1],[17,0,17,1],[18,0,18,1],[19,0,19,1],[20,0,20,1],[9,12,13,12],[10,0,10,1],[11,0,11,1],[12,0,12,1],[13,0,13,1],[14,0,14,11],[5,0,5,2],[5,3,5,4],[7,0,7,1],[8,0,8,11],[9,0,9,1]]}
[]
["SFS-EN ISO 9712"]
["ANSIOPISTEIDEN KERUUJÄRJESTELMÄ LEVEL-3 UUDELLEENSERTIFIOINTIA (10-vuotistutkinto) VARTEN"]
[]
["Hakija (sertifioitu henkilö):",null,null,"Menetelmä ja taso"]
[]
[]
["Taulukko C.1 ISO 9712",null,"Toiminto","Pisteet joka toiminnolle","Enimmäispisteet vuotta ja toimintoa kohti","Enimmäispisteet 5 vuotta ja toimintoa kohti","Vuosi 1","Vuosi 2","Vuosi 3","Vuosi 4","Vuosi 5","Yht.    1-5 vuosi","Osa A Pisteet yht. min 50    max 70"]
["OSA A"]
[1,null,"NDT-toimintojen suorittaminen (ks. SFS-EN ISO 9712 kappale C.2)a","2 / päivä",25,95,null,null,null,null,null,{"$f":"IF(SUM(G10:K10)>F10,F10,SUM(G10:K10))","v":0},{"$f":"IF(SUM(L10:L14)>70,70,SUM(L10:L14))","v":0}]
[2,null,"Menetelmään liittyvän teoreettisen koulutuksen suorittaminen","1 / päivä",5,15,null,null,null,null,null,{"$f":"IF(SUM(G11:K11)>F11,F11,SUM(G11:K11))","v":0},null,{"$f":"IF(AND(M10>0,M10<50),\"Pisteet ei riitä\",\"\")","v":""}]
[3,null,"Menetelmään liittyvän käytännön koulutuksen suorittaminen","2 / päivä",10,25,null,null,null,null,null,{"$f":"IF(SUM(G12:K12)>F12,F12,SUM(G12:K12))","v":0}]
[4,null,"Käytännön tai teoreettisen koulutuksen antaminen kyseisestä NDT-menetelmästä","1 / päivä",15,75,null,null,null,null,null,{"$f":"IF(SUM(G13:K13)>F13,F13,SUM(G13:K13))","v":0}]
[5,null,"NDT-tutkimustoimintaan tai NDT-toimintaan osallistuminen (ks. SFS-EN ISO 9712 liite E)","2 / viikko",15,60,null,null,null,null,null,{"$f":"IF(SUM(G14:K14)>F14,F14,SUM(G14:K14))","v":0}]
["OSA B",null,null,null,null,null,null,null,null,null,null,null,"Osa B Pisteet yht. min 30    max 50"]
[6,null,"Osallistuminen menetelmään tai tekniikkaan liittyvään tekniseen seminaariin tai julkaisun kirjoittamiseen","1 / päivä",2,10,null,null,null,null,null,{"$f":"IF(SUM(G16:K16)>F16,F16,SUM(G16:K16))","v":0},{"$f":"IF(SUM(L16:L21)>50,50,SUM(L16:L21))","v":0}]
[7,null,"Julkaisun esittely menetelmään tai tekniikkaan liittyvässä teknisessä seminaarissa","1 / esitys",3,15,null,null,null,null,null,0,null,{"$f":"IF(AND(M16>0,M16<30),\"Pisteet ei riitä\",\"\")","v":""}]
[8,null,"NDT-yhdistyksen tai NDT:hen liittyvän yhdistyksen voimassa oleva henkilökohtainen jäsenyys","1 / jäsenyys",2,5,null,null,null,null,null,0]
[9,null,"NDT-henkilöstön/harjoittelijoiden valvonta ja opastus kyseisessä menetelmässä","2 / mentoroitava",10,40,null,null,null,null,null,0]
[10,null,"Osallistuminen tai puheenjohtajuus kansallisissa standardisointiryhmissä ja teknisissä komiteoissa","1 / komitea",4,20,null,null,null,null,null,0]
[11,null,"Teknisten NDT-tehtävien suorittaminen sertifiointielimen palveluksessa","2 / toiminta",10,40,null,null,null,null,null,0]
[null,null,"HUOM. Taulukossa esiintyvällä termillä ”vuosi” tarkoitetaan sertifiointivuotta, ei kalenterivuotta."]
[null,null,"a Katso kohta C.2 yksityiskohdista tähän toimintoon liittyen.",null,null,null,null,null,null,null,null,"Pisteet yhteensä (vaatimus vähintään 100):",{"$f":"M10+M16","v":0},{"$f":"IF(AND(M23>0,M23<100),\"Pisteet ei riitä\",\"\")","v":""}]
[]
[]
[]
["Hakijan allekirjoitus",null,null,"PVM"]
[]
[]
["Työnantajan allekirjoitus:",null,null,"PVM"]
[]
[]
["Tutkinnon arvostelija (sertifiointielin):",null,null,"PVM"]

{"sheet":"C.2 NDT-toimintojen suorittamin","index":4,"n_rows":26,"n_cols":2,"rows_kept":26,"cut":false,"hidden":false,"merged":[]}
[]
[null,"SFS-EN ISO 9712:2022"]
[null,"C.2 NDT-toimintojen suorittaminen"]
[]
[null,"C.2.1 Arvioitaessa tätä toimintotyyppiä sertifiointielimen olisi otettava huomioon kohdassa 5.5"]
[null,"esitettävät työnantajien velvollisuudet ja kohdassa 6 esitettävät vastuut. Seuraavia työtehtäviä voidaan pitää hyväksyttävinä:"]
[]
[null,"a) tiedot asiakkaan eritelmistä ja tarkastusstandardeista ja niiden ymmärtäminen"]
[null,"b) laiteparametrien varmentaminen tai NDT-laitteiston säätö, tarkastuksen suorittaminen onnistuneesti, tyydyttävä raportointi"]
[null,"c) toimiminen tason 3 pätevöijänä."]
[]
[null,"C.2.2 Kohdassa C.2.1 määriteltävien toimintojen arvioimiseksi sertifiointielin voi pyytää uusintaa tai"]
[null,"tason 3 uudelleensertifiointia hakevalta kokelaalta asiakirjoja ja/tai todisteita vaatimustenmukaisuudesta, mukaan lukien mm. seuraavista:"]
[]
[null,"a) sertifioidun henkilön tai arvioijan antama vahvistus kokelaan työtehtävistä"]
[null,"b) vahvistus henkilön toiminnan tasosta kyseisellä menetelmällä"]
[null,"c) vahvistus muodollisesti dokumentoidusta pätevyydestä tai taitojen testauksesta kyseisellä menetelmällä"]
[null,"d) raporttien päivämäärät ja asiakirjanumerot"]
[null,"e) tiedot käytännön harjoituksista"]
[null,"f) tiedot työnantajan antamasta toimintavaltuutuksesta"]
[null,"g) yhteenveto toiminnoista ja suoritteista"]
[null,"h) työn/aseman kuvaus"]
[null,"i) vuosittaiset/säännölliset työnantajan arvioinnit suoriutumisesta/pätevyydestä"]
[null,"j) näytteitä NDT-tarkastuspöytäkirjoista"]
[null,"k) kehitetyt näytemenettelyt (vain tasolla 3)"]
[null,"l) asiakaspalautteita"]

{"sheet":"Liite E","index":5,"n_rows":28,"n_cols":3,"rows_kept":28,"cut":false,"hidden":false,"merged":[]}
[]
[null,"SFS-EN ISO 9712:2022"]
[null,"E.1 Määritelmä"]
[null,"NDT-toiminta kattaa kaikki toiminnot, jotka liittyvät rikkomattomiin tarkastusmenetelmiin alkaen"]
[null,"laitteiden suunnittelusta saman laitteen rikkomattomien tarkastusmenetelmien valmistelujen,"]
[null,"soveltamisen ja varmentamisen (valmistuksessa ja käytössä) teollisissa ja teknisissä asennuksissa."]
[]
[null,"E.2 Lista esimerkeistä sisältyvästä toiminnasta"]
[]
[null,"Toimintaan sisältyvät:"]
[null,"a) suunnittelussa on otettava huomioon vaatimusten määrittely ja/tai valmistuksen aikainen tarkastettavuus sekä tarvittaessa käytön aikainen tarkastus"]
[null,"b) NDT-tekniikoiden valinta valmistuksen ja käytön aikaiseen tarkastamiseen"]
[null,"c) eri säädösten ja standardien tiettyjen määräysten vertailu"]
[null,"d) NDT-ohjeiden laatiminen ja varmentaminen"]
[null,"e) NDT-toimittajien tekninen arviointi"]
[null,"f) NDT-tekniikoiden arviointi, erityisesti asiantuntemuksen taso"]
[null,"g) poikkeaminen käsittely (tekninen arviointi)"]
[null,"h) perustelut asiakkaille ja tarvittaessa siihen liittyville viranomaistahoille tekniikoiden käytöstä"]
[null,"i) NDT-toimintojen vastuu"]
[null,"j) NDT-henkilöstön toiminnan koordinointi ja valvonta"]
[null,"k) pätevyys – NDT-tekniikoiden hyväksyntä"]
[null,null,"1) perustietojen vahvistaminen sisältäen tarkastuksen tavoitteet"]
[null,null,"2) tarvittavien harjoituskokeiden määrittely avoimille ja tarvittaessa sokkotesteille"]
[null,null,"3) käytännön testien toteuttaminen"]
[null,null,"4) teknisen perustelun valmistelu sisältäen tarvittaessa mallinnuksen"]
[null,null,"5) NDT-ohjeiden laatiminen tai hyväksyntä"]
[null,null,"6) tutkinnon asiakirjojen valmistelu tai hyväksyntä"]
[null,"l) käytönaikaisten tarkastusohjelmien vahvistaminen teollisiin asennuksiin tai sääntöjen määrittäminen"]